bitfinex/quotes_SOLUSD_20230120
["timestamp","ask_amount","ask_price","bid_price","bid_amount"]
[1674221499028,52.25,21.282,21.27,15.04]
[1674221499650,17.0,21.282,21.27,15.04]
[1674221500283,52.25,21.282,21.27,15.04]
[1674221500824,17.0,21.282,21.27,15.04]
[1674221504168,4.5,21.282,21.27,15.04]
[1674221504374,0.96,21.281,21.27,15.04]
[1674221504585,0.96,21.282,21.271,10.0]
[1674221506402,17.96,21.282,21.271,10.0]
[1674221506601,17.0,21.281,21.271,10.0]
[1674221506797,0.96,21.282,21.271,10.0]
[1674221507752,10.96,21.282,21.271,10.0]
[1674221507966,17.0,21.281,21.271,10.0]
[1674221508492,0.96,21.28,21.271,10.0]
[1674221508917,17.0,21.282,21.271,10.0]
[1674221509117,0.96,21.281,21.271,10.0]
[1674221509309,0.96,21.281,21.27,15.04]
[1674221509513,35.25,21.282,21.265,10.0]
[1674221509731,17.0,21.281,21.267,20.0]
[1674221509952,10.0,21.28,21.267,20.0]
[1674221510266,17.0,21.279,21.267,20.0]
[1674221510480,35.25,21.28,21.267,20.0]
[1674221510674,45.25,21.284,21.268,10.96]
[1674221510886,45.25,21.284,21.27,10.0]
[1674221512889,17.96,21.283,21.27,10.0]
[1674221516256,17.0,21.283,21.27,25.04]
[1674221517101,17.0,21.284,21.27,25.04]
[1674221520549,17.0,21.284,21.271,0.96]
[1674221521938,10.0,21.283,21.27,15.04]
[1674221522134,10.0,21.283,21.267,30.0]
[1674221522135,17.0,21.282,21.267,30.0]
[1674221522556,10.96,21.281,21.267,30.0]
[1674221522890,17.0,21.28,21.267,30.0]
[1674221523095,0.96,21.279,21.267,30.0]
[1674221524776,0.96,21.279,21.267,20.0]
[1674221525085,10.96,21.279,21.267,20.0]
[1674221525409,17.0,21.278,21.265,20.0]
[1674221525718,17.0,21.278,21.262,20.0]
[1674221525911,52.26,21.278,21.263,10.0]
[1674221526123,52.26,21.278,21.264,20.0]
[1674221526333,10.0,21.277,21.264,20.0]
[1674221526561,17.0,21.276,21.264,20.0]
[1674221526753,10.0,21.277,21.264,20.0]
[1674221526962,10.0,21.279,21.265,10.0]
[1674221527173,10.0,21.279,21.266,20.0]
[1674221527805,10.0,21.279,21.257,27.94]
[1674221528026,59.01576951,21.278,21.25,15.01]
[1674221528241,37.96,21.277,21.25,15.01]
[1674221528430,35.26,21.276,21.25,15.01]
[1674221528641,14.93,21.27,21.242,25.78]
[1674221528851,62.27,21.269,21.243,10.0]
[1674221529071,62.27,21.269,21.25,15.04]
[1674221530023,10.0,21.268,21.251,10.0]
[1674221530345,52.28,21.267,21.251,10.0]
[1674221530565,0.96,21.266,21.251,10.0]
[1674221530770,35.28,21.265,21.251,10.0]
[1674221531091,17.0,21.264,21.251,10.0]
[1674221531273,35.28,21.266,21.25,15.04]
[1674221531819,35.28,21.266,21.251,10.0]
[1674221532859,10.0,21.265,21.251,10.0]
[1674221533062,53.24,21.264,21.251,10.0]
[1674221533277,53.24,21.264,21.25,15.04]
[1674221533713,10.0,21.263,21.25,15.04]
[1674221533914,52.28,21.262,21.247,10.0]
[1674221534130,52.28,21.262,21.248,20.0]
[1674221534741,10.96,21.261,21.244,20.0]
[1674221534974,52.29,21.26,21.244,20.0]
[1674221535164,10.0,21.259,21.245,10.0]
[1674221535376,35.29,21.258,21.246,20.0]
[1674221535600,17.0,21.26,21.246,20.0]
[1674221535918,17.0,21.261,21.247,10.0]
[1674221536231,35.28,21.262,21.25,15.04]
[1674221536432,111.8303,21.263,21.251,10.0]
[1674221537181,111.8303,21.263,21.25,15.04]
[1674221537392,35.28,21.262,21.249,10.0]
[1674221537704,10.0,21.261,21.249,10.0]
[1674221537925,52.29,21.26,21.249,10.0]
[1674221538236,17.0,21.26,21.248,20.0]
[1674221538433,0.96,21.259,21.246,20.0]
[1674221538644,10.0,21.258,21.246,20.0]
[1674221538975,17.0,21.257,21.247,10.0]
[1674221539175,36.25,21.259,21.247,10.0]
[1674221539176,17.0,21.258,21.248,20.0]
[1674221539701,17.96,21.259,21.248,20.0]
[1674221540117,35.29,21.258,21.246,20.0]
[1674221540328,17.0,21.257,21.244,10.0]
[1674221540541,36.25,21.256,21.241,10.0]
[1674221540747,10.0,21.254,21.241,10.0]
[1674221541175,17.0,21.253,21.241,10.0]
[1674221541368,52.3,21.253,21.241,10.0]
[1674221541578,35.3,21.253,21.241,10.0]
[1674221541805,35.29,21.255,21.241,10.0]
[1674221542023,10.0,21.258,21.242,0.96]
[1674221542024,35.29,21.257,21.242,0.96]
[1674221542330,27.96,21.256,21.241,10.0]
[1674221542652,10.0,21.254,21.241,10.0]
[1674221542865,17.0,21.253,21.241,10.0]
[1674221543386,35.3,21.252,21.236,10.0]
[1674221543575,35.3,21.252,21.238,10.0]
[1674221543576,17.96,21.251,21.238,10.0]
[1674221543788,35.3,21.25,21.239,20.0]
[1674221544029,17.0,21.249,21.239,20.0]
[1674221544430,35.3,21.25,21.239,20.0]
[1674221544635,35.3,21.253,21.24,10.0]
[1674221544845,17.96,21.252,21.24,10.0]
[1674221545067,35.3,21.251,21.24,10.0]
[1674221545285,17.0,21.25,21.24,10.0]
[1674221545994,52.3,21.251,21.239,20.0]
[1674221547576,52.3,21.251,21.236,10.0]
[1674221547889,52.3,21.251,21.237,20.0]
[1674221548618,10.0,21.25,21.237,20.0]
[1674221548830,52.3,21.249,21.237,20.0]
[1674221549039,0.96,21.248,21.237,20.0]
[1674221549251,0.96,21.248,21.233,10.0]
[1674221549570,10.0,21.246,21.233,10.0]
[1674221549783,52.31,21.245,21.233,10.0]
[1674221550207,0.96,21.244,21.233,10.0]
[1674221550847,110.9515,21.249,21.233,10.0]
[1674221551250,110.9515,21.249,21.235,10.0]
[1674221551464,110.9515,21.249,21.236,20.0]
[1674221551790,110.9515,21.249,21.237,10.0]
[1674221552314,110.9515,21.249,21.238,20.0]
[1674221552530,110.9515,21.249,21.239,10.0]
[1674221552717,35.3,21.251,21.239,10.0]
[1674221552928,119.0079,21.257,21.24,15.04]
[1674221553137,35.29,21.256,21.241,10.0]
[1674221555660,17.0,21.255,21.24,15.04]
[1674221555869,10.0,21.253,21.239,10.0]
[1674221556081,52.3,21.252,21.239,10.0]
[1674221556817,52.3,21.252,21.238,30.0]
[1674221557031,10.0,21.251,21.238,20.0]
[1674221557341,52.3,21.25,21.235,10.0]
[1674221557569,10.96,21.249,21.235,10.0]
[1674221557764,52.31,21.248,21.235,10.0]
[1674221558621,0.96,21.247,21.235,10.0]
[1674221558836,35.31,21.246,21.235,10.0]
[1674221559067,17.96,21.245,21.235,10.0]
[1674221559474,0.96,21.245,21.235,10.0]
[1674221559683,17.0,21.247,21.233,10.0]
[1674221559684,17.0,21.244,21.233,10.0]
[1674221560096,35.31,21.243,21.232,10.0]
[1674221560634,35.31,21.244,21.232,9.5]
[1674221560840,35.31,21.247,21.232,9.5]
[1674221561040,35.31,21.247,21.233,17.96]
[1674221561466,109.0259,21.248,21.234,10.0]
[1674221561777,35.31,21.247,21.234,10.0]
[1674221562421,17.96,21.246,21.234,10.0]
[1674221562631,35.31,21.245,21.234,10.0]
[1674221562832,17.0,21.244,21.234,10.0]
[1674221563473,35.31,21.243,21.231,10.0]
[1674221563766,17.0,21.242,21.227,10.0]
[1674221564003,35.32,21.241,21.229,20.0]
[1674221564197,17.0,21.24,21.229,20.0]
[1674221564407,35.32,21.239,21.23,10.0]
[1674221564608,17.96,21.238,21.23,10.0]
[1674221565367,17.0,21.238,21.23,10.0]
[1674221565567,35.31,21.244,21.23,10.0]
[1674221565777,35.31,21.246,21.23,10.0]
[1674221566108,10.0,21.245,21.23,10.0]
[1674221566310,35.31,21.244,21.23,10.0]
[1674221566508,35.31,21.244,21.229,20.0]
[1674221567255,27.96,21.243,21.229,20.0]
[1674221567458,10.0,21.241,21.229,20.0]
[1674221567667,52.32,21.24,21.229,20.0]
[1674221568396,35.32,21.24,21.23,10.0]
[1674221568618,35.31,21.248,21.231,0.96]
[1674221568832,35.3,21.251,21.231,43.74]
[1674221569450,35.3,21.251,21.232,10.0]
[1674221569662,35.29,21.256,21.24,15.0]
[1674221570083,35.3,21.251,21.24,15.0]
[1674221570509,35.29,21.257,21.241,27.96]
[1674221570726,110.2021,21.258,21.241,27.96]
[1674221570922,35.29,21.257,21.241,52.62]
[1674221571343,35.28,21.261,21.251,10.0]
[1674221571563,111.0284,21.269,21.251,10.0]
[1674221571782,35.27,21.268,21.251,10.0]
[1674221572092,10.0,21.267,21.251,10.0]
[1674221572312,35.28,21.266,21.251,10.0]
[1674221573252,17.0,21.262,21.25,15.04]
[1674221573979,0.96,21.261,21.25,15.04]
[1674221574602,17.0,21.262,21.25,15.04]
[1674221576399,46.24,21.261,21.242,37.88]
[1674221576620,17.0,21.26,21.242,10.0]
[1674221576808,10.0,21.258,21.242,10.0]
[1674221577021,53.25,21.257,21.242,10.0]
[1674221577339,52.29,21.257,21.242,10.0]
[1674221578183,52.29,21.257,21.243,0.96]
[1674221578388,0.96,21.256,21.234,51.58247405]
[1674221578596,35.29,21.255,21.237,20.0]
[1674221578806,35.29,21.255,21.238,10.0]
[1674221578807,17.0,21.254,21.238,10.0]
[1674221579018,36.26,21.253,21.239,20.0]
[1674221579328,17.0,21.252,21.24,25.01]
[1674221579872,17.0,21.252,21.241,10.0]
[1674221580187,17.0,21.254,21.241,10.0]
[1674221580590,52.29,21.255,21.241,10.0]
[1674221581011,52.29,21.255,21.24,15.01]
[1674221581220,10.0,21.254,21.239,20.0]
[1674221581431,52.3,21.253,21.239,20.0]
[1674221581758,10.0,21.252,21.237,20.0]
[1674221581966,52.3,21.251,21.237,20.0]
[1674221582178,52.3,21.251,21.238,10.0]
[1674221582393,35.3,21.252,21.239,20.0]
[1674221582592,35.29,21.255,21.239,20.0]
[1674221582802,35.29,21.255,21.24,15.01]
[1674221583335,10.0,21.254,21.241,10.0]
[1674221583656,35.3,21.253,21.241,10.0]
[1674221584049,35.29,21.255,21.241,10.0]
[1674221584469,35.29,21.255,21.239,20.0]
[1674221584470,10.0,21.254,21.239,20.0]
[1674221584697,35.3,21.253,21.239,20.0]
[1674221584911,10.0,21.252,21.239,20.0]
[1674221585107,36.26,21.251,21.239,20.0]
[1674221585521,17.0,21.25,21.239,20.0]
[1674221586176,17.0,21.252,21.239,20.0]
[1674221586373,35.3,21.251,21.24,10.0]
[1674221586699,35.3,21.251,21.24,30.14]
[1674221586902,35.29,21.255,21.24,30.14]
[1674221587828,17.96,21.254,21.24,30.14]
[1674221588064,10.0,21.253,21.24,10.0]
[1674221588254,17.0,21.252,21.24,10.0]
[1674221588586,35.29,21.255,21.241,0.96]
[1674221589329,35.29,21.258,21.241,0.96]
[1674221590069,35.29,21.26,21.242,10.0]
[1674221590284,35.28,21.261,21.243,17.96]
[1674221590494,35.28,21.261,21.245,10.0]
[1674221590800,35.28,21.261,21.246,20.0]
[1674221590988,35.28,21.262,21.247,0.96]
[1674221591202,35.28,21.262,21.247,10.96]
[1674221591427,35.28,21.262,21.249,10.0]
[1674221592586,10.0,21.26,21.246,20.0]
[1674221592802,17.0,21.259,21.246,20.0]
[1674221592996,52.29,21.259,21.246,20.0]
[1674221593838,52.29,21.259,21.247,10.0]
[1674221594065,35.28,21.262,21.25,20.11]
[1674221594255,35.28,21.267,21.25,20.11]
[1674221594465,45.27,21.272,21.251,10.0]
[1674221594675,10.0,21.27,21.251,10.96]
[1674221594903,35.27,21.269,21.251,10.96]
[1674221595117,10.0,21.268,21.251,10.0]
[1674221595307,10.0,21.266,21.251,10.0]
[1674221595521,10.0,21.266,21.248,10.0]
[1674221595522,53.24,21.265,21.248,10.0]
[1674221595728,76.99576951,21.265,21.249,20.0]
[1674221595941,10.0,21.264,21.249,20.0]
[1674221596156,52.28,21.263,21.249,20.0]
[1674221596364,10.0,21.262,21.249,20.0]
[1674221596598,52.28,21.263,21.249,20.0]
[1674221596599,52.28,21.261,21.25,10.0]
[1674221597537,17.0,21.261,21.25,10.0]
[1674221597852,17.0,21.261,21.249,20.0]
[1674221598250,35.29,21.26,21.249,20.0]
[1674221598461,17.0,21.259,21.249,20.0]
[1674221598993,35.28,21.262,21.25,10.0]
[1674221599421,155.1,21.263,21.25,10.0]
[1674221599608,119.82,21.263,21.25,10.0]
[1674221599824,35.28,21.262,21.25,10.0]
[1674221600973,10.0,21.261,21.25,10.0]
[1674221601185,27.0,21.261,21.249,20.0]
[1674221601398,35.29,21.26,21.247,20.0]
[1674221601625,17.96,21.259,21.246,20.0]
[1674221601833,35.29,21.258,21.247,10.0]
[1674221602039,17.0,21.257,21.248,20.0]
[1674221602255,35.29,21.26,21.248,20.0]
[1674221602465,155.1,21.263,21.248,20.0]
[1674221602885,17.0,21.262,21.249,10.0]
[1674221603102,35.28,21.261,21.249,10.0]
[1674221603294,17.0,21.26,21.249,10.0]
[1674221603506,52.28,21.262,21.249,10.0]
[1674221604154,35.28,21.262,21.249,10.0]
[1674221604353,119.82,21.263,21.25,0.96]
[1674221604774,153.8504,21.265,21.251,10.0]
[1674221604987,153.8504,21.265,21.252,0.96]
[1674221605816,153.8504,21.265,21.251,10.0]
[1674221606032,10.0,21.263,21.251,10.0]
[1674221606241,35.28,21.262,21.251,10.0]
[1674221606460,45.28,21.263,21.251,10.0]
[1674221606672,35.28,21.263,21.251,10.0]
[1674221608543,17.0,21.262,21.249,10.0]
[1674221608784,35.28,21.261,21.249,10.0]
[1674221608971,17.0,21.26,21.249,10.0]
[1674221609827,35.28,21.263,21.25,20.12]
[1674221610014,118.5704,21.265,21.25,20.12]
[1674221610230,118.5704,21.265,21.251,10.0]
[1674221610456,118.5704,21.265,21.252,0.96]
[1674221611077,35.28,21.264,21.252,0.96]
[1674221611494,35.27,21.271,21.253,14.58448197]
[1674221611703,35.27,21.273,21.26,20.07]
[1674221611910,116.7225,21.274,21.261,10.0]
[1674221613085,35.27,21.273,21.261,10.0]
[1674221613506,116.7225,21.274,21.262,0.96]
[1674221618860,35.26,21.278,21.263,14.58448197]
[1674221619074,35.25,21.284,21.27,20.14]
[1674221619511,35.25,21.284,21.271,10.0]
[1674221621913,17.0,21.283,21.271,10.0]
[1674221622121,10.0,21.292,21.271,10.0]
[1674221622122,35.25,21.282,21.271,10.0]
[1674221622344,10.0,21.29,21.273,10.0]
[1674221622562,35.25,21.284,21.274,0.96]
[1674221623066,35.24,21.289,21.274,0.96]
[1674221623483,35.24,21.289,21.27,34.72448197]
[1674221623718,35.24,21.289,21.26,20.07]
[1674221624031,33.75576951,21.288,21.262,20.0]
[1674221624225,35.24,21.287,21.263,10.0]
[1674221624435,58.99576951,21.287,21.264,20.0]
[1674221624660,10.0,21.285,21.263,10.0]
[1674221624971,10.0,21.283,21.263,10.0]
[1674221625203,72.25,21.282,21.263,10.0]
[1674221625377,96.00576951,21.282,21.263,10.0]
[1674221625589,72.25,21.282,21.264,0.96]
[1674221625917,10.0,21.281,21.264,0.96]
[1674221626128,10.0,21.279,21.264,0.96]
[1674221626336,52.26,21.278,21.264,0.96]
[1674221627380,10.0,21.277,21.264,0.96]
[1674221627588,35.26,21.276,21.264,0.96]
[1674221629172,35.26,21.277,21.264,15.54448197]
[1674221629387,35.26,21.277,21.264,50.12896394]
[1674221629601,17.0,21.278,21.265,10.0]
[1674221629812,17.0,21.28,21.266,20.0]
[1674221630022,35.26,21.279,21.266,20.0]
[1674221630347,17.0,21.278,21.266,20.0]
[1674221630739,17.0,21.278,21.267,10.0]
[1674221630949,17.0,21.28,21.268,20.0]
[1674221631159,35.26,21.279,21.268,20.0]
[1674221631379,17.0,21.278,21.268,20.0]
[1674221632126,17.0,21.28,21.268,20.0]
[1674221632442,35.26,21.279,21.268,20.0]
[1674221632629,17.0,21.278,21.269,10.0]
[1674221633258,52.25,21.28,21.269,10.0]
[1674221634018,52.25,21.28,21.268,20.0]
[1674221634207,10.96,21.279,21.268,20.0]
[1674221634417,17.0,21.278,21.268,20.0]
[1674221634639,0.96,21.279,21.269,10.0]
[1674221635279,35.25,21.28,21.269,10.0]
[1674221635489,17.96,21.279,21.269,10.0]
[1674221636101,17.0,21.278,21.269,10.0]
[1674221636335,0.96,21.279,21.269,10.0]
[1674221636647,17.96,21.279,21.269,10.0]
[1674221636836,17.0,21.279,21.269,10.0]
[1674221637047,17.0,21.281,21.269,10.0]
[1674221637379,35.25,21.28,21.269,10.0]
[1674221637699,35.25,21.283,21.271,10.0]
[1674221637882,116.3103,21.284,21.271,10.0]
[1674221638741,116.3103,21.284,21.272,0.96]
[1674221639588,35.24,21.288,21.273,10.0]
[1674221639779,35.24,21.291,21.274,20.0]
[1674221640204,35.24,21.291,21.275,10.0]
[1674221640416,35.24,21.291,21.276,20.0]
[1674221640631,35.23,21.292,21.277,10.0]
[1674221640830,35.23,21.293,21.277,10.0]
[1674221641040,35.23,21.293,21.278,20.0]
[1674221641801,35.23,21.293,21.279,10.0]
[1674221642413,114.4937,21.294,21.28,21.1]
[1674221642641,35.23,21.293,21.281,10.0]
[1674221642847,35.23,21.293,21.28,20.14]
[1674221643038,35.23,21.293,21.279,10.0]
[1674221643578,10.0,21.292,21.278,20.0]
[1674221643774,35.24,21.291,21.278,20.0]
[1674221644192,35.24,21.291,21.279,10.0]
[1674221644954,35.24,21.291,21.278,20.0]
[1674221645261,17.0,21.29,21.278,20.0]
[1674221645454,35.24,21.289,21.274,10.0]
[1674221645670,27.0,21.288,21.269,10.0]
[1674221645875,36.2,21.287,21.265,45.28]
[1674221646093,17.0,21.286,21.265,10.0]
[1674221646299,45.25,21.285,21.265,10.0]
[1674221646517,10.0,21.283,21.265,10.0]
[1674221646715,52.25,21.282,21.265,10.0]
[1674221646926,0.96,21.281,21.265,10.0]
[1674221647260,35.25,21.28,21.268,20.0]
[1674221647480,17.0,21.279,21.268,20.0]
[1674221649024,17.0,21.279,21.269,10.0]
[1674221649240,35.25,21.28,21.269,10.0]
[1674221649571,35.25,21.284,21.269,10.0]
[1674221649790,35.25,21.284,21.27,0.96]
[1674221649989,35.25,21.284,21.27,17.96]
[1674221650208,35.25,21.284,21.27,0.96]
[1674221650398,232.643,21.285,21.271,10.0]
[1674221650613,232.643,21.285,21.272,0.96]
[1674221652611,35.24,21.287,21.272,0.96]
[1674221652827,35.23,21.292,21.28,20.14]
[1674221653125,144.1503,21.295,21.28,20.14]
[1674221653356,144.1503,21.295,21.281,10.0]
[1674221654399,144.1503,21.295,21.282,0.96]
[1674221655786,144.1503,21.295,21.281,10.0]
[1674221656294,17.0,21.294,21.281,10.0]
[1674221657665,35.23,21.293,21.281,10.0]
[1674221658283,10.0,21.292,21.28,20.14]
[1674221659457,52.24,21.291,21.276,10.0]
[1674221659772,53.2,21.291,21.277,20.0]
[1674221659986,53.2,21.291,21.278,10.0]
[1674221660175,53.2,21.291,21.279,20.0]
[1674221663239,53.2,21.291,21.28,10.0]
[1674221663770,35.24,21.291,21.28,10.0]
[1674221663980,35.23,21.293,21.28,10.0]
[1674221664168,35.23,21.293,21.279,20.0]
[1674221664377,10.0,21.292,21.279,20.0]
[1674221664692,35.24,21.291,21.279,20.0]
[1674221665131,17.0,21.29,21.279,20.0]
[1674221666690,17.0,21.29,21.277,20.0]
[1674221666907,45.24,21.289,21.277,20.0]
[1674221667117,17.0,21.288,21.277,20.0]
[1674221668704,17.0,21.288,21.275,20.0]
[1674221668917,35.24,21.287,21.275,20.0]
[1674221669107,17.0,21.286,21.276,10.0]
[1674221669321,17.0,21.286,21.277,20.0]
[1674221669627,17.0,21.287,21.277,20.0]
[1674221670276,17.0,21.287,21.278,10.0]
[1674221670480,35.24,21.291,21.279,20.0]
[1674221670680,17.0,21.29,21.279,20.0]
[1674221672572,35.24,21.291,21.279,20.0]
[1674221672781,17.0,21.29,21.279,20.0]
[1674221673855,10.0,21.288,21.279,20.0]
[1674221674171,17.0,21.287,21.26,20.07]
[1674221674367,45.24,21.286,21.26,20.07]
[1674221674579,10.0,21.284,21.262,10.0]
[1674221674780,52.25,21.283,21.263,157.8468]
[1674221675115,10.96,21.282,21.263,127.6768]
[1674221675328,52.25,21.281,21.267,20.0]
[1674221675515,17.0,21.28,21.268,10.0]
[1674221675728,35.26,21.279,21.269,20.0]
[1674221675939,35.26,21.279,21.27,10.0]
[1674221677115,17.0,21.28,21.27,10.0]
[1674221682368,10.0,21.279,21.269,20.0]
[1674221682581,17.0,21.278,21.269,20.0]
[1674221684165,35.25,21.281,21.27,10.0]
[1674221684355,35.25,21.284,21.27,10.0]
[1674221684565,17.96,21.283,21.27,63.58701153]
[1674221684781,35.25,21.282,21.27,63.58701153]
[1674221684987,17.0,21.281,21.27,63.58701153]
[1674221685738,35.25,21.282,21.27,63.58701153]
[1674221685936,35.25,21.284,21.27,63.58701153]
[1674221686156,35.25,21.284,21.271,0.96]
[1674221686349,115.8514,21.287,21.271,17.96]
[1674221686562,35.24,21.291,21.272,68.1714935]
[1674221686901,35.23,21.292,21.274,10.0]
[1674221687103,35.23,21.292,21.275,0.96]
[1674221687321,128.1303,21.294,21.275,116.50701153]
[1674221687322,35.23,21.293,21.275,116.50701153]
[1674221687539,35.23,21.293,21.276,63.58701153]
[1674221687841,35.23,21.293,21.277,74.54701153]
[1674221688030,35.23,21.293,21.278,10.0]
[1674221688241,35.23,21.293,21.279,20.0]
[1674221688453,35.23,21.293,21.28,10.0]
[1674221688669,35.23,21.293,21.28,30.14]
[1674221688872,153.3603,21.294,21.28,30.14]
[1674221689611,118.1303,21.294,21.28,83.72701153]
[1674221690447,35.23,21.295,21.281,0.96]
[1674221690662,163.7713,21.306,21.281,17.96]
[1674221690876,10.0,21.305,21.282,10.0]
[1674221691083,35.21,21.304,21.283,0.96]
[1674221691297,10.0,21.303,21.283,0.96]
[1674221691507,35.22,21.302,21.283,0.96]
[1674221692166,10.0,21.301,21.283,0.96]
[1674221692343,35.22,21.3,21.283,0.96]
[1674221692779,10.0,21.299,21.283,0.96]
[1674221692977,35.22,21.298,21.283,0.96]
[1674221694662,35.22,21.298,21.282,10.0]
[1674221694872,52.23,21.295,21.282,10.0]
[1674221695085,17.0,21.295,21.282,10.0]
[1674221696039,151.0991,21.298,21.282,10.0]
[1674221696243,151.0991,21.298,21.283,0.96]
[1674221696451,35.22,21.298,21.283,20.96]
[1674221696663,35.22,21.3,21.284,17.0]
[1674221696881,35.22,21.3,21.286,10.0]
[1674221697089,35.22,21.3,21.287,20.0]
[1674221699188,17.0,21.299,21.287,20.0]
[1674221699391,35.22,21.298,21.287,20.0]
[1674221699602,17.0,21.297,21.287,20.0]
[1674221700253,17.0,21.299,21.287,20.0]
[1674221700452,36.18,21.298,21.287,20.0]
[1674221700661,17.0,21.297,21.285,10.0]
[1674221700876,10.0,21.296,21.286,20.0]
[1674221701088,17.0,21.295,21.282,53.58701153]
[1674221701284,35.23,21.294,21.28,10.0]
[1674221701490,17.0,21.293,21.28,10.0]
[1674221701705,35.23,21.292,21.28,30.14]
[1674221701910,35.23,21.292,21.28,83.45017219]
[1674221702544,35.23,21.292,21.281,0.96]
[1674221702870,35.23,21.294,21.281,0.96]
[1674221703083,35.23,21.294,21.28,83.45017219]
[1674221703291,17.0,21.293,21.28,83.45017219]
[1674221703609,35.23,21.292,21.28,83.45017219]
[1674221703824,17.0,21.293,21.28,83.45017219]
[1674221704021,17.0,21.293,21.28,63.31017219]
[1674221704558,10.0,21.292,21.28,63.31017219]
[1674221704767,52.24,21.291,21.277,10.0]
[1674221704985,52.24,21.291,21.278,20.0]
[1674221705713,52.24,21.291,21.276,20.0]
[1674221705927,10.0,21.29,21.276,20.0]
[1674221706134,53.2,21.289,21.276,20.0]
[1674221706338,53.2,21.289,21.275,20.0]
[1674221706864,10.0,21.288,21.275,20.0]
[1674221707073,52.24,21.287,21.275,20.0]
[1674221707506,0.96,21.286,21.275,20.0]
[1674221708121,0.96,21.286,21.271,10.0]
[1674221708122,10.96,21.286,21.271,10.0]
[1674221708333,52.25,21.285,21.271,10.0]
[1674221708539,0.96,21.284,21.271,10.0]
[1674221710744,131.2043,21.285,21.271,10.0]
[1674221711172,131.2043,21.285,21.271,24.64022124]